fUST/lending_fUST_20260118
["ID","MTS","AMOUNT","RATE_DAILY","PERIOD"]
[402463208,1768681847571,-500.0,0.00016438,3]
[402463210,1768681847584,-500.0,0.00016438,3]
[402463212,1768681847595,-500.0,0.00016438,3]
[402463214,1768681847605,-755.61,0.00016438,3]
[402463217,1768681847615,-500.0,0.00016438,3]
[402463219,1768681847626,-1378.03,0.00016438,3]
[402463221,1768681847637,-879.74,0.00016438,3]
[402463223,1768681847648,-500.0,0.00016438,3]
[402463225,1768681847659,-500.0,0.00016438,3]
[402463228,1768681847671,-540.01468021,0.00016438,3]
[402463230,1768681847682,-500.0,0.00016438,3]
[402463232,1768681847693,-595.76,0.00016438,3]
[402463234,1768681847708,-500.0,0.00016438,3]
[402463236,1768681847719,-263.30228,0.00016438,2]
[402463239,1768681847731,-263.30228,0.00016438,2]
[402463241,1768681847742,-263.30228,0.00016438,2]
[402463243,1768681847753,-263.30228,0.00016438,2]
[402463245,1768681847764,-543.38,0.00016438,3]
[402463247,1768681847775,-500.0,0.00016438,3]
[402463249,1768681847787,-500.0,0.00016438,3]
[402463251,1768681847798,-500.0,0.00016438,3]
[402463254,1768681847810,-500.0,0.00016438,3]
[402463256,1768681847821,-500.0,0.00016438,3]
[402463258,1768681847832,-500.0,0.00016438,3]
[402463260,1768681847844,-500.0,0.00016438,3]
[402463262,1768681847855,-500.0,0.00016438,3]
[402463265,1768681847866,-508.14,0.00016438,3]
[402463267,1768681847877,-500.0,0.00016438,3]
[402463269,1768681847889,-500.0,0.00016438,3]
[402463271,1768681847900,-500.0,0.00016438,3]
[402463274,1768681847911,-500.0,0.00016438,3]
[402463276,1768681847923,-500.0,0.00016438,3]
[402463278,1768681847934,-500.0,0.00016438,3]
[402463280,1768681847945,-500.0,0.00016438,3]
[402463283,1768681847956,-500.0,0.00016438,3]
[402463285,1768681847974,-500.0,0.00016438,3]
[402463287,1768681847985,-500.0,0.00016438,3]
[402463289,1768681847996,-500.0,0.00016438,3]
[402463291,1768681848008,-500.0,0.00016438,3]
[402463293,1768681848020,-500.0,0.00016438,3]
[402463296,1768681848031,-809.41,0.00016438,3]
[402463298,1768681848041,-500.0,0.00016438,3]
[402463300,1768681848052,-478.32257424,0.00016438,3]
[402463302,1768681848064,-500.0,0.00016438,3]
[402463304,1768681848075,-500.0,0.00016438,3]
[402463307,1768681848087,-555.48,0.00016438,3]
[402463309,1768681848098,-500.0,0.00016438,3]
[402463311,1768681848109,-500.0,0.00016438,3]
[402463313,1768681848121,-1077.54,0.00016438,3]
[402463316,1768681848132,-500.0,0.00016438,3]
[402463318,1768681848144,-500.0,0.00016438,3]
[402463320,1768681848155,-632.04690666,0.00016438,3]
[402463322,1768681848165,-1380.33,0.00016438,3]
[402463324,1768681848176,-1301.79,0.00016438,3]
[402463326,1768681848186,-1358.52,0.00016438,3]
[402463328,1768681848198,-500.0,0.00016438,3]
[402463331,1768681848208,-1128.02,0.00016438,3]
[402463333,1768681848220,-825.7,0.00016438,3]
[402463335,1768681848230,-1443.33,0.00016438,3]
[402463337,1768681848241,-500.0,0.00016438,3]
[402463339,1768681848252,-500.0,0.00016438,3]
[402463341,1768681848264,-500.0,0.00016438,3]
[402463344,1768681848275,-500.0,0.00016438,3]
[402463346,1768681848285,-500.0,0.00016438,3]
[402463348,1768681848296,-500.0,0.00016438,3]
[402463350,1768681848307,-500.0,0.00016438,3]
[402463352,1768681848317,-523.99827377,0.00016438,3]
[402463354,1768681848329,-804.74,0.00016438,3]
[402463356,1768681848340,-500.0,0.00016438,3]
[402463359,1768681848355,-12044.46,0.00016438,3]
[402463361,1768681848366,-500.0,0.00016438,3]
[402463363,1768681848377,-725.5,0.00016438,3]
[402463365,1768681848390,-500.0,0.00016438,3]
[402463367,1768681848402,-500.0,0.00016438,3]
[402463370,1768681848413,-632.68,0.00016438,3]
[402463372,1768681848427,-500.0,0.00016438,3]
[402463374,1768681848438,-500.0,0.00016438,3]
[402463376,1768681848449,-500.0,0.00016438,3]
[402463378,1768681848460,-500.0,0.00016438,3]
[402463380,1768681848471,-500.0,0.00016438,3]
[402463383,1768681848482,-500.0,0.00016438,3]
[402463385,1768681848493,-500.0,0.00016438,3]
[402463387,1768681848504,-500.0,0.00016438,3]
[402463389,1768681848515,-500.0,0.00016438,3]
[402463391,1768681848525,-500.0,0.00016438,3]
[402463393,1768681848536,-500.0,0.00016438,3]
[402463395,1768681848547,-202.85755538,0.00016438,3]
[402463398,1768681848561,-500.0,0.00016438,3]
[402463400,1768681848572,-500.0,0.00016438,3]
[402463402,1768681848583,-726.59,0.00016438,3]
[402463404,1768681848594,-500.0,0.00016438,3]
[402463406,1768681848606,-500.0,0.00016438,3]
[402463408,1768681848618,-835.03,0.00016438,3]
[402463410,1768681848630,-500.0,0.00016438,3]
[402463413,1768681848640,-500.0,0.00016438,3]
[402463415,1768681848651,-818.9,0.00016438,3]
[402463417,1768681848662,-500.0,0.00016438,3]
[402463419,1768681848673,-500.0,0.00016438,3]
[402463421,1768681848684,-500.0,0.00016438,3]
[402463423,1768681848695,-702.73,0.00016438,3]
[402463425,1768681848707,-500.0,0.00016438,3]
[402463428,1768681848718,-728.08,0.00016438,3]
[402463430,1768681848729,-1146.04,0.00016438,3]
[402463432,1768681848740,-1113.15,0.00016438,3]
[402463434,1768681848752,-500.0,0.00016438,3]
[402463436,1768681848763,-1200.0,0.00016438,2]
[402463439,1768681848775,-500.0,0.00016438,3]
[402463441,1768681848785,-500.0,0.00016438,3]
[402463443,1768681848797,-500.0,0.00016438,3]
[402463445,1768681848807,-500.0,0.00016438,3]
[402463447,1768681848819,-1551.42,0.00016438,3]
[402463449,1768681848830,-500.0,0.00016438,3]
[402463451,1768681848842,-500.0,0.00016438,3]
[402463454,1768681848855,-500.0,0.00016438,3]
[402463456,1768681848866,-500.0,0.00016438,3]
[402463458,1768681848878,-500.0,0.00016438,3]
[402463460,1768681848889,-500.0,0.00016438,3]
[402463462,1768681848901,-500.0,0.00016438,3]
[402463464,1768681848912,-500.0,0.00016438,2]
[402463466,1768681848922,-1425.71,0.00016438,3]
[402463467,1768681848932,-500.0,0.00016438,3]
[402463468,1768681848943,-500.0,0.00016438,3]
[402463469,1768681848953,-1391.6,0.00016438,3]
[402463470,1768681848963,-500.0,0.00016438,3]
[402463471,1768681848974,-500.0,0.00016438,3]
[402463472,1768681848984,-506.28,0.00016438,3]
[402463473,1768681848994,-500.0,0.00016438,3]
[402463474,1768681849007,-500.0,0.00016438,3]
[402463475,1768681849019,-932.84,0.00016438,3]
[402463476,1768681849030,-672.94,0.00016438,3]
[402463477,1768681849040,-500.0,0.00016438,3]
[402463478,1768681849051,-500.0,0.00016438,3]
[402463479,1768681849061,-500.0,0.00016438,3]
[402463480,1768681849071,-500.0,0.00016438,3]
[402463481,1768681849082,-500.0,0.00016438,3]
[402463482,1768681849092,-500.0,0.00016438,3]
[402463483,1768681849103,-500.0,0.00016438,3]
[402463484,1768681849113,-531.51,0.00016438,3]
[402463485,1768681849124,-500.0,0.00016438,3]
[402463486,1768681849134,-500.0,0.00016438,3]
[402463487,1768681849144,-500.0,0.00016438,3]
[402463489,1768681849156,-500.0,0.00016438,3]
[402463491,1768681849167,-500.0,0.00016438,3]
[402463493,1768681849178,-500.0,0.00016438,3]
[402463496,1768681849190,-500.0,0.00016438,3]
[402463498,1768681849200,-1219.79,0.00016438,3]
[402463500,1768681849211,-500.0,0.00016438,3]
[402463502,1768681849222,-500.0,0.00016438,3]
[402463504,1768681849233,-500.0,0.00016438,3]
[402463506,1768681849244,-675.39,0.00016438,3]
[402463509,1768681849257,-500.0,0.00016438,3]
[402463511,1768681849268,-890.03,0.00016438,3]
[402463513,1768681849278,-500.0,0.00016438,3]
[402463515,1768681849289,-500.0,0.00016438,3]
[402463517,1768681849299,-1633.97,0.00016438,3]
[402463519,1768681849309,-906.67,0.00016438,3]
[402463523,1768681849335,-500.0,0.00016438,3]
[402463525,1768681849353,-172.631544,0.00016438,3]
[402463527,1768681849365,-582.1,0.00016438,3]
[402463530,1768681849380,-151.0,0.00016438,2]
[402463532,1768681849395,-500.0,0.00016438,3]
[402463535,1768681849409,-500.0,0.00016438,3]
[402463537,1768681849422,-2076.46,0.00016438,3]
[402463539,1768681849435,-151.0,0.00016438,2]
[402463541,1768681849447,-500.0,0.00016438,3]
[402463544,1768681849459,-500.0,0.00016438,3]
[402463546,1768681849472,-500.0,0.00016438,3]
[402463548,1768681849485,-151.0,0.00016438,2]
[402463551,1768681849497,-576.72,0.00016438,3]
[402463553,1768681849509,-693.13,0.00016438,3]
[402463555,1768681849521,-500.0,0.00016438,3]
[402463557,1768681849533,-500.0,0.00016438,3]
[402463560,1768681849544,-500.0,0.00016438,3]
[402463562,1768681849556,-500.0,0.00016438,3]
[402463564,1768681849568,-158.856128,0.00016438,3]
[402463566,1768681849580,-500.0,0.00016438,3]
[402463569,1768681849592,-500.0,0.00016438,3]
[402463571,1768681849604,-500.0,0.00016438,3]
[402463573,1768681849615,-1009.69,0.00016438,3]
[402463575,1768681849627,-500.0,0.00016438,3]
[402463577,1768681849639,-500.0,0.00016438,3]
[402463580,1768681849650,-500.0,0.00016438,3]
[402463582,1768681849662,-500.0,0.00016438,3]
[402463584,1768681849674,-500.0,0.00016438,3]
[402463586,1768681849686,-500.0,0.00016438,3]
[402463589,1768681849698,-500.0,0.00016438,3]
[402463591,1768681849709,-500.0,0.00016438,3]
[402463593,1768681849720,-596.26,0.00016438,3]
[402463595,1768681849732,-1233.71,0.00016438,3]
[402463597,1768681849743,-500.0,0.00016438,3]
[402463600,1768681849754,-1191.65,0.00016438,3]
[402463602,1768681849766,-500.0,0.00016438,3]
[402463604,1768681849778,-1000.0,0.00016438,2]
[402463606,1768681849789,-500.0,0.00016438,3]
[402463608,1768681849800,-500.0,0.00016438,3]
[402463611,1768681849811,-834.54,0.00016438,3]
[402463613,1768681849822,-500.0,0.00016438,3]
[402463615,1768681849833,-500.0,0.00016438,3]
[402463617,1768681849845,-1069.23,0.00016438,3]
[402463619,1768681849856,-500.0,0.00016438,3]
[402463621,1768681849868,-500.0,0.00016438,3]
[402463624,1768681849880,-500.0,0.00016438,3]
[402463626,1768681849890,-600.21,0.00016438,3]
[402463628,1768681849899,-500.0,0.00016438,3]
[402463630,1768681849908,-500.0,0.00016438,3]
[402463672,1768681850304,-500.0,0.00016438,3]
[402463676,1768681850335,-500.0,0.00016438,3]
[402463680,1768681850359,-500.0,0.00016438,3]
[402463682,1768681850372,-701.17,0.00016438,3]
[402463684,1768681850381,-500.0,0.00016438,3]
[402463686,1768681850391,-500.0,0.00016438,3]
[402463688,1768681850400,-500.0,0.00016438,3]
[402463690,1768681850409,-503.06859357,0.00016438,3]
[402463692,1768681850422,-500.0,0.00016438,3]
[402463694,1768681850431,-450.64316952,0.00016438,3]
[402463696,1768681850442,-500.0,0.00016438,3]
[402463698,1768681850452,-500.0,0.00016438,3]
[402463700,1768681850461,-1264.47,0.00016438,3]
[402463702,1768681850470,-500.0,0.00016438,3]
[402463704,1768681850480,-1656.75,0.00016438,3]
[402463706,1768681850489,-500.0,0.00016438,3]
[402463708,1768681850498,-645.0,0.00016438,3]
[402463710,1768681850507,-500.0,0.00016438,3]
[402463712,1768681850517,-1002.99,0.00016438,3]
[402463714,1768681850526,-500.0,0.00016438,3]
[402463716,1768681850535,-2176.82,0.00016438,3]
[402463718,1768681850545,-500.0,0.00016438,3]
[402463720,1768681850554,-500.0,0.00016438,3]
[402463722,1768681850563,-500.0,0.00016438,3]
[402463724,1768681850573,-531.28,0.00016438,3]
[402463726,1768681850583,-500.0,0.00016438,3]
[402463728,1768681850592,-183.73779352,0.00016438,3]
[402463730,1768681850601,-500.0,0.00016438,3]
[402463732,1768681850610,-605.0,0.00016438,3]
[402463734,1768681850620,-500.0,0.00016438,3]
[402463736,1768681850629,-500.0,0.00016438,3]
[402463738,1768681850638,-1395.51,0.00016438,3]
[402463739,1768681850647,-500.0,0.00016438,3]
[402463741,1768681850657,-435.20636976,0.00016438,3]
[402463743,1768681850667,-801.52,0.00016438,3]
[402463745,1768681850677,-1281.78,0.00016438,3]
[402463747,1768681850687,-1113.91,0.00016438,3]
[402463749,1768681850696,-500.0,0.00016438,3]
[402463752,1768681850706,-500.0,0.00016438,3]
[402463754,1768681850715,-500.0,0.00016438,3]
[402463755,1768681850725,-500.0,0.00016438,3]
[402463757,1768681850734,-500.0,0.00016438,3]
[402463760,1768681850744,-500.0,0.00016438,3]
[402463762,1768681850753,-467.49360859,0.00016438,3]
[402463763,1768681850764,-766.79,0.00016438,3]
[402463765,1768681850773,-500.0,0.00016438,3]
[402463767,1768681850783,-500.0,0.00016438,3]
[402463769,1768681850791,-500.0,0.00016438,3]
[402463771,1768681850800,-926.04,0.00016438,3]
[402463773,1768681850809,-500.0,0.00016438,3]
[402463775,1768681850818,-2880.81,0.00016438,3]
[402463777,1768681850828,-500.0,0.00016438,3]
[402463779,1768681850837,-532.59,0.00016438,3]
[402463781,1768681850846,-500.0,0.00016438,3]
[402463783,1768681850855,-500.0,0.00016438,3]
[402463785,1768681850865,-500.0,0.00016438,3]
[402463787,1768681850874,-543.61913102,0.00016438,3]
[402463789,1768681850883,-1061.24,0.00016438,3]
[402463791,1768681850893,-642.42,0.00016438,3]
[402463793,1768681850902,-500.0,0.00016438,3]
[402463795,1768681850913,-500.0,0.00016438,3]
[402463797,1768681850922,-500.0,0.00016438,3]
[402463799,1768681850931,-151.0,0.00016438,2]
[402463801,1768681850941,-533.25,0.00016438,3]
[402463803,1768681850950,-597.25,0.00016438,3]
[402463805,1768681850959,-500.0,0.00016438,3]
[402463807,1768681850969,-500.0,0.00016438,3]
[402463809,1768681850978,-500.0,0.00016438,3]
[402463811,1768681850988,-500.0,0.00016438,3]
[402463813,1768681850997,-500.0,0.00016438,3]
[402463815,1768681851006,-505.83,0.00016438,3]
[402463817,1768681851015,-500.0,0.00016438,3]
[402463819,1768681851026,-538.58,0.00016438,3]
[402463821,1768681851036,-500.0,0.00016438,3]
[402463823,1768681851045,-1116.75,0.00016438,3]
[402463825,1768681851054,-211.62283602,0.00016438,3]
[402463827,1768681851063,-500.0,0.00016438,3]
[402463829,1768681851073,-417.85698666,0.00016438,3]
[402463831,1768681851083,-500.0,0.00016438,3]
[402463833,1768681851091,-500.0,0.00016438,3]
[402463835,1768681851101,-775.8,0.00016438,3]
[402463837,1768681851111,-500.0,0.00016438,3]
[402463839,1768681851121,-6357.57,0.00016438,3]
[402463841,1768681851130,-694.52,0.00016438,3]
[402463843,1768681851139,-936.78,0.00016438,3]
[402463845,1768681851149,-500.0,0.00016438,3]
[402463847,1768681851159,-500.0,0.00016438,3]
[402463849,1768681851170,-500.0,0.00016438,3]
[402463851,1768681851180,-500.0,0.00016438,3]
[402463853,1768681851189,-500.0,0.00016438,3]
[402463855,1768681851199,-872.79,0.00016438,3]
[402463857,1768681851208,-500.0,0.00016438,3]
[402463859,1768681851218,-500.0,0.00016438,3]
[402463861,1768681851226,-746.14,0.00016438,3]
[402463863,1768681851236,-500.0,0.00016438,3]
[402463865,1768681851245,-309.96810054,0.00016438,3]
[402463866,1768681851254,-500.0,0.00016438,3]
[402463867,1768681851263,-500.0,0.00016438,3]
[402463868,1768681851273,-1846.68,0.00016438,3]
[402463869,1768681851282,-688.55,0.00016438,3]
[402463870,1768681851292,-500.0,0.00016438,3]
[402463871,1768681851301,-423.66716387,0.00016438,3]
[402463872,1768681851311,-500.0,0.00016438,3]
[402463873,1768681851321,-500.0,0.00016438,3]
[402463874,1768681851330,-1265.32,0.00016438,3]
[402463875,1768681851339,-500.0,0.00016438,3]
[402463876,1768681851351,-500.0,0.00016438,3]
[402463877,1768681851361,-500.0,0.00016438,3]
[402463878,1768681851371,-1387.64,0.00016438,3]
[402463879,1768681851380,-598.89865208,0.00016438,3]
[402463880,1768681851390,-664.91,0.00016438,3]
[402463881,1768681851399,-784.96,0.00016438,3]
[402463882,1768681851408,-1084.91,0.00016438,3]
[402463883,1768681851419,-1435.11,0.00016438,3]
[402463884,1768681851429,-500.0,0.00016438,3]
[402463885,1768681851439,-264.29964932,0.00016438,3]
[402463886,1768681851448,-500.0,0.00016438,3]
[402463887,1768681851458,-500.0,0.00016438,3]
[402463888,1768681851467,-500.0,0.00016438,3]
[402463889,1768681851476,-500.0,0.00016438,3]
[402463890,1768681851486,-553.03,0.00016438,3]
[402463891,1768681851496,-618.08,0.00016438,3]
[402463892,1768681851505,-500.0,0.00016438,3]
[402463893,1768681851515,-704.85,0.00016438,3]
[402463894,1768681851525,-948.78,0.00016438,3]
[402463895,1768681851535,-500.0,0.00016438,3]
[402463896,1768681851545,-738.57,0.00016438,3]
[402463897,1768681851555,-992.96,0.00016438,3]
[402463898,1768681851565,-500.0,0.00016438,3]
[402463899,1768681851575,-500.0,0.00016438,3]
[402463900,1768681851585,-500.0,0.00016438,3]
[402463901,1768681851595,-597.06,0.00016438,3]
[402463902,1768681851604,-500.0,0.00016438,3]
[402463904,1768681851614,-500.0,0.00016438,3]
[402463906,1768681851623,-500.0,0.00016438,3]
[402463908,1768681851633,-500.0,0.00016438,3]
[402463910,1768681851642,-513.00114578,0.00016438,3]
[402463912,1768681851651,-500.0,0.00016438,3]
[402463914,1768681851661,-500.0,0.00016438,3]
[402463916,1768681851670,-500.0,0.00016438,3]
[402463917,1768681851679,-500.0,0.00016438,3]
[402463919,1768681851688,-500.0,0.00016438,3]
[402463922,1768681851698,-500.0,0.00016438,3]
[402463923,1768681851707,-500.0,0.00016438,3]
[402463925,1768681851717,-500.0,0.00016438,3]
[402463927,1768681851726,-1175.75,0.00016438,3]
[402463929,1768681851736,-500.0,0.00016438,3]
[402463931,1768681851745,-500.0,0.00016438,3]
[402463933,1768681851754,-500.0,0.00016438,3]
[402463936,1768681851764,-1893.94,0.00016438,3]
[402463937,1768681851774,-500.0,0.00016438,3]
[402463940,1768681851783,-500.0,0.00016438,3]
[402463941,1768681851793,-596.66,0.00016438,3]
[402463943,1768681851802,-527.42325342,0.00016438,3]
[402463945,1768681851812,-362.08497691,0.00016438,3]
[402463947,1768681851821,-500.0,0.00016438,3]
[402463949,1768681851830,-500.0,0.00016438,3]
[402463951,1768681851839,-1323.23,0.00016438,3]
[402463953,1768681851848,-979.4,0.00016438,3]
[402463955,1768681851858,-500.0,0.00016438,3]
[402463957,1768681851867,-1256.22,0.00016438,3]
[402463959,1768681851877,-500.0,0.00016438,3]
[402463961,1768681851886,-500.0,0.00016438,3]
[402463963,1768681851895,-500.0,0.00016438,3]
[402463965,1768681851905,-500.0,0.00016438,3]
[402463967,1768681851914,-332.91217118,0.00016438,3]
[402463969,1768681851924,-500.0,0.00016438,3]
[402463971,1768681851934,-444.83809808,0.00016438,3]
[402463973,1768681851943,-1087.65,0.00016438,3]
[402463975,1768681851953,-500.0,0.00016438,3]
[402463977,1768681851963,-500.0,0.00016438,3]
[402463979,1768681851973,-609.19,0.00016438,3]
[402463981,1768681851982,-1057.38,0.00016438,3]
[402463983,1768681851991,-500.0,0.00016438,3]
[402463985,1768681852001,-500.0,0.00016438,3]
[402463987,1768681852010,-500.0,0.00016438,2]
[402463989,1768681852020,-2392.5,0.00016438,2]
[402463991,1768681852030,-2392.5,0.00016438,2]
[402463993,1768681852041,-647.35,0.00016438,3]
[402463995,1768681852051,-2125.85,0.00016438,3]
[402463997,1768681852061,-500.0,0.00016438,3]
[402463999,1768681852070,-500.0,0.00016438,3]
[402464001,1768681852079,-500.0,0.00016438,3]
[402464003,1768681852088,-500.0,0.00016438,3]
[402464005,1768681852098,-2392.5,0.00016438,2]
[402464007,1768681852107,-2392.5,0.00016438,2]
[402464009,1768681852116,-2392.5,0.00016438,2]
[402464011,1768681852126,-563.42,0.00016438,3]
[402464013,1768681852135,-2392.5,0.00016438,2]
[402464015,1768681852145,-2392.5,0.00016438,2]
[402464017,1768681852153,-2392.5,0.00016438,2]
[402464019,1768681852162,-500.0,0.00016438,3]
[402464021,1768681852172,-2392.5,0.00016438,2]
[402464023,1768681852181,-2392.5,0.00016438,2]
[402464025,1768681852190,-2392.5,0.00016438,2]
[402464027,1768681852199,-2392.5,0.00016438,2]
[402464029,1768681852209,-2392.5,0.00016438,2]
[402464031,1768681852218,-2392.5,0.00016438,2]
[402464033,1768681852227,-2392.5,0.00016438,2]
[402464035,1768681852236,-1719.73,0.00016438,3]
[402464037,1768681852245,-658.84,0.00016438,3]
[402464039,1768681852255,-2392.5,0.00016438,2]
[402464041,1768681852264,-2392.5,0.00016438,2]
[402464043,1768681852273,-500.0,0.00016438,3]
[402464045,1768681852282,-2392.5,0.00016438,2]
[402464047,1768681852292,-2392.5,0.00016438,2]
[402464049,1768681852302,-2392.5,0.00016438,2]
[402464051,1768681852311,-500.0,0.00016438,3]
[402464053,1768681852320,-500.0,0.00016438,3]
[402464055,1768681852329,-2392.5,0.00016438,2]
[402464057,1768681852338,-225.94247433,0.00016438,3]
[402464059,1768681852351,-2392.5,0.00016438,2]
[402464061,1768681852361,-2392.5,0.00016438,2]
[402464063,1768681852370,-2392.63255502,0.00016438,2]
[402464065,1768681852379,-500.0,0.00016438,3]
[402464067,1768681852388,-1244.06,0.00016438,3]
[402464069,1768681852398,-500.0,0.00016438,3]
[402464071,1768681852407,-643.98345217,0.00016438,3]
[402464073,1768681852416,-500.0,0.00016438,3]
[402464075,1768681852426,-500.0,0.00016438,3]
[402464077,1768681852435,-500.0,0.00016438,3]
[402464079,1768681852444,-200.53732028,0.00016438,3]
[402464081,1768681852454,-500.0,0.00016438,3]
[402464083,1768681852464,-2390.17,0.00016438,3]
[402464085,1768681852474,-151.0,0.00016438,2]
[402464087,1768681852482,-500.0,0.00016438,2]
[402464089,1768681852492,-500.0,0.00016438,2]
[402464091,1768681852502,-500.0,0.00016438,2]
[402464093,1768681852511,-473.31431115,0.00016438,2]
[402464095,1768681852521,-500.0,0.00016438,3]
[402464097,1768681852530,-500.0,0.00016438,3]
[402464099,1768681852541,-151.0,0.00016438,2]
[402464101,1768681852550,-500.0,0.00016438,3]
[402464103,1768681852559,-151.0,0.00016438,2]
[402464105,1768681852569,-504.02216576,0.00016438,3]
[402464107,1768681852578,-151.0,0.00016438,2]
[402464109,1768681852588,-500.0,0.00016438,3]
[402464111,1768681852598,-500.0,0.00016438,3]
[402464113,1768681852607,-500.0,0.00016438,3]
[402464115,1768681852617,-982.35,0.00016438,3]
[402464117,1768681852626,-500.0,0.00016438,3]
[402464119,1768681852635,-730.0,0.00016494,2]
[402464121,1768681852645,-1000.0,0.000166,2]
[402464123,1768681852655,-1000.0,0.000166,2]
[402464125,1768681852664,-1000.0,0.000166,2]
[402464127,1768681852674,-1000.0,0.000166,2]
[402464129,1768681852684,-1000.0,0.000166,2]
[402464131,1768681852693,-1000.0,0.000166,2]
[402464133,1768681852703,-1000.0,0.000166,2]
[402464135,1768681852712,-1000.0,0.000166,2]
[402464137,1768681852723,-1000.0,0.000166,2]
[402464139,1768681852732,-1000.0,0.000166,2]
[402464141,1768681852742,-547.485748,0.000166,2]
[402464143,1768681852751,-496.47127164,0.00016628,2]
[402464145,1768681852760,-2398.4119403,0.00016628,2]
[402464147,1768681852770,-595.8422426,0.00016712,3]
[402464149,1768681852779,-500.0,0.00016712,3]
[402464151,1768681852789,-500.0,0.00016712,3]
[402464153,1768681852799,-500.0,0.00016712,3]
[402464155,1768681852809,-541.87987257,0.00016712,3]
[402464157,1768681852818,-500.0,0.00016712,3]
[402464159,1768681852827,-580.78,0.00016712,3]
[402464161,1768681852836,-500.0,0.00016712,3]
[402464163,1768681852845,-500.0,0.00016712,3]
[402464165,1768681852855,-500.0,0.00016712,3]
[402464167,1768681852863,-500.0,0.00016712,3]
[402464169,1768681852872,-500.0,0.00016712,3]
[402464171,1768681852882,-500.0,0.00016712,3]
[402464173,1768681852891,-500.0,0.00016712,3]
[402464175,1768681852900,-500.0,0.00016712,3]
[402464177,1768681852912,-500.0,0.00016712,3]
[402464179,1768681852921,-500.0,0.00016712,3]
[402464181,1768681852932,-565.25,0.00016712,3]
[402464183,1768681852942,-500.0,0.00016712,3]
[402464185,1768681852951,-500.0,0.00016712,3]
[402464187,1768681852960,-500.0,0.00016712,3]
[402464189,1768681852969,-763.31,0.00016712,3]
[402464191,1768681852979,-500.0,0.00016712,3]
[402464193,1768681852990,-403.87472748,0.00016712,3]
[402464195,1768681852999,-500.0,0.00016712,3]
[402464197,1768681853009,-722.15,0.00016712,3]
[402464199,1768681853018,-500.0,0.00016712,3]
[402464201,1768681853027,-500.0,0.00016712,3]
[402464203,1768681853036,-500.0,0.00016712,3]
[402464205,1768681853046,-500.0,0.00016712,3]
[402464207,1768681853055,-500.0,0.00016712,3]
[402464209,1768681853064,-696.17,0.00016712,3]
[402464211,1768681853074,-500.0,0.00016712,3]
[402464213,1768681853083,-500.0,0.00016712,2]
[402464215,1768681853093,-500.0,0.00016712,3]
[402464217,1768681853103,-705.46,0.00016712,3]
[402464219,1768681853113,-500.0,0.00016712,3]
[402464221,1768681853122,-500.0,0.00016712,3]
[402464223,1768681853132,-500.0,0.00016712,3]
[402464225,1768681853141,-713.49,0.00016712,3]